bitfinex-derivatives/quotes_ETHF0:USTF0_20260310
["timestamp","ask_amount","ask_price","bid_price","bid_amount"]
[1773179152575,0.24716,2022.9,2022.1,1.65211467]
[1773179152771,1.73946946,2023.2,2022.1,1.65211467]
[1773179153374,1.73946946,2023.2,2022.1,2.54897279]
[1773179155186,1.73946946,2023.2,2022.2,1.65211467]
[1773179155673,1.73946946,2023.2,2022.2,2.54897279]
[1773179155879,1.73946946,2023.2,2022.2,1.65211467]
[1773179156282,7.78556334,2023.1,2022.3,0.89685812]
[1773179156577,9.5250328,2023.1,2022.3,0.89685812]
[1773179156879,1.73946946,2023.1,2022.4,0.89685812]
[1773179157076,1.73946946,2023.1,2022.2,1.65211467]
[1773179157277,1.73946946,2023.1,2022.3,0.89685812]
[1773179157474,1.73946946,2023.1,2022.3,2.54897279]
[1773179157689,3.91104966,2023.3,2022.3,1.65211467]
[1773179157876,13.43608246,2023.3,2022.3,2.54897279]
[1773179158072,8.55794065,2023.2,2022.4,1.65211467]
[1773179158276,7.78556334,2023.1,2022.4,1.65211467]
[1773179158577,7.78556334,2023.0,2022.4,1.65211467]
[1773179158779,1.73946946,2023.2,2022.4,1.65211467]
[1773179159477,0.00593303,2023.3,2022.7,0.89685812]
[1773179159780,0.00593303,2023.3,2022.6,1.65211467]
[1773179160082,0.00593303,2023.3,2022.7,0.89685812]
[1773179160283,0.00593303,2023.3,2022.6,1.65211467]
[1773179160483,0.00593303,2023.3,2022.8,0.89685812]
[1773179160678,7.78394727,2023.2,2022.6,1.65211467]
[1773179161283,1.74540249,2023.3,2022.6,1.65211467]
[1773179161483,1.74540249,2023.3,2022.8,0.01481892]
[1773179161782,0.00593303,2023.3,2022.6,1.65211467]
[1773179162585,0.00593303,2023.3,2022.9,0.01481892]
[1773179162981,0.00593303,2023.3,2022.6,1.65211467]
[1773179163580,0.00593303,2023.3,2022.9,0.01481892]
[1773179163781,0.00593303,2023.3,2022.6,1.65211467]
[1773179163989,0.00593303,2023.3,2022.9,0.01481892]
[1773179164187,1.73946946,2023.5,2022.6,1.65211467]
[1773179164387,7.78394727,2023.4,2022.6,1.65211467]
[1773179164585,7.78394727,2023.4,2022.8,0.01481892]
[1773179164786,7.78394727,2023.4,2022.6,1.65211467]
[1773179164987,7.78394727,2023.4,2022.9,0.01481892]
[1773179165188,9.52738686,2023.4,2022.9,0.01481892]
[1773179165378,1.74343959,2023.4,2022.6,1.65211467]
[1773179165582,1.74343959,2023.4,2022.9,0.01481892]
[1773179166389,1.74343959,2023.4,2023.0,0.01481892]
[1773179166591,1.74343959,2023.4,2023.0,0.00569263]
[1773179166790,1.74343959,2023.4,2023.1,0.01481892]
[1773179166995,0.00397013,2023.4,2023.0,0.00569263]
[1773179167188,0.00397013,2023.4,2023.1,0.01481892]
[1773179167587,0.00397013,2023.4,2023.0,1.6578073]
[1773179167887,7.78352413,2023.6,2023.3,0.01481892]
[1773179168081,1.73946946,2023.8,2023.0,1.6578073]
[1773179168286,8.55489586,2023.7,2023.0,1.6578073]
[1773179168492,7.78279335,2023.6,2023.0,1.6578073]
[1773179168686,7.78279335,2023.5,2023.3,0.01481892]
[1773179168887,0.00485459,2023.6,2023.0,1.6578073]
[1773179169085,7.78279335,2023.5,2023.0,1.6578073]
[1773179169282,0.00485459,2023.6,2023.4,0.01481892]
[1773179169492,6.23127236,2023.5,2023.0,1.6578073]
[1773179169685,0.00485459,2023.6,2023.0,1.6578073]
[1773179170191,5.64458609,2024.0,2023.0,1.6578073]
[1773179170588,3.90511663,2024.1,2023.0,1.6578073]
[1773179170793,7.62537048,2024.3,2023.0,1.6578073]
[1773179170794,5.64458609,2024.3,2023.0,1.6578073]
[1773179171091,3.90511663,2024.4,2023.0,1.6578073]
[1773179171287,0.003836,2024.4,2023.0,1.6578073]
[1773179171884,0.003836,2024.4,2023.2,1.65211467]
[1773179172089,0.003836,2024.4,2023.4,1.65211467]
[1773179172590,0.003836,2024.4,2023.6,1.65211467]
[1773179173996,10.34925669,2025.2,2023.6,1.65211467]
[1773179173997,3.90511663,2025.0,2023.6,1.65211467]
[1773179174195,1.73946946,2025.3,2023.6,1.65211467]
[1773179174393,1.73946946,2025.3,2023.8,1.65211467]
[1773179174784,1.73946946,2025.3,2024.0,1.65211467]
[1773179174990,1.74346263,2025.3,2024.0,1.65211467]
[1773179175190,1.74346263,2025.3,2024.2,1.65211467]
[1773179175393,1.74346263,2025.3,2024.3,1.65211467]
[1773179175594,1.73946946,2025.1,2024.3,1.65211467]
[1773179177083,1.73946946,2025.1,2023.2,1.65211467]
[1773179177289,1.98638946,2024.8,2023.4,1.65211467]
[1773179177491,1.73946946,2024.7,2023.6,1.65211467]
[1773179178293,1.98640946,2024.6,2023.6,1.65211467]
[1773179178488,1.98640946,2024.6,2023.1,40.8]
[1773179178489,6.32195,2024.6,2023.1,1.65211467]
[1773179178694,1.73946946,2024.5,2023.1,1.65211467]
[1773179179994,1.73946946,2024.5,2023.3,2.25896457]
[1773179182388,1.73946946,2024.5,2023.4,2.25896457]
[1773179183294,2.22763972,2024.3,2023.4,2.25896457]
[1773179184296,2.22763972,2024.5,2023.4,2.25896457]
[1773179184898,2.22763972,2024.5,2023.5,2.25896457]
[1773179185396,2.22763972,2024.7,2023.5,2.25896457]
[1773179185698,7.63272701,2024.6,2023.5,2.25896457]
[1773179186399,2.22763972,2024.9,2023.5,2.25896457]
[1773179186600,7.63662295,2024.8,2023.5,2.25896457]
[1773179187197,2.22763972,2024.9,2023.5,2.25896457]
[1773179187398,2.22763972,2025.1,2023.7,2.25896457]
[1773179187900,2.23163289,2025.3,2023.9,2.25896457]
[1773179188101,7.64104465,2025.2,2023.9,2.25896457]
[1773179188396,2.23163289,2025.3,2023.9,2.25896457]
[1773179188993,2.23163289,2025.3,2024.0,9.414]
[1773179189301,2.23163289,2025.3,2024.1,2.25896457]
[1773179191398,2.47850289,2025.3,2024.1,2.25896457]
[1773179191601,2.22763972,2025.1,2024.1,2.25896457]
[1773179191797,2.22763972,2024.9,2024.1,2.25896457]
[1773179192800,2.22763972,2025.2,2024.1,2.25896457]
[1773179193004,9.85923937,2025.1,2024.1,2.25896457]
[1773179193204,2.22763972,2025.1,2024.1,2.25896457]
[1773179193406,7.63436727,2025.0,2024.1,2.25896457]
[1773179193605,2.22763972,2025.0,2024.1,2.25896457]
[1773179194398,4.1559798,2025.3,2024.1,2.25896457]
[1773179194399,2.22763972,2024.8,2024.1,2.25896457]
[1773179194808,2.22763972,2024.8,2024.0,9.374]
[1773179195307,2.22763972,2024.6,2023.9,11.62696457]
[1773179197008,2.22763972,2024.6,2023.9,2.25896457]
[1773179197209,2.22763972,2024.6,2023.9,11.61696457]
[1773179200311,9.89479653,2024.5,2023.9,11.61696457]
[1773179200511,2.22763972,2024.5,2023.9,11.61696457]
[1773179200901,2.22763972,2024.5,2023.9,11.59296457]
[1773179201608,2.22763972,2024.5,2023.9,2.25896457]
[1773179201907,3.90511663,2024.7,2023.6,2.25896457]
[1773179201908,2.22763972,2024.3,2023.6,2.25896457]
[1773179202607,9.89437248,2024.2,2023.6,2.25896457]
[1773179202814,2.22763972,2024.1,2023.6,2.25896457]
[1773179203115,7.66532276,2024.0,2023.5,2.25896457]
[1773179203412,2.22763972,2024.1,2023.5,2.25896457]
[1773179203613,2.22763972,2023.9,2023.5,11.56913986]
[1773179204209,2.22763972,2024.3,2023.6,2.25896457]
[1773179204412,7.66408541,2024.2,2023.8,2.25896457]
[1773179204617,6.13275635,2024.5,2023.8,2.25896457]
[1773179204819,2.22763972,2024.3,2023.7,9.313]
[1773179205015,6.29123072,2024.7,2023.4,9.311]
[1773179205016,2.47464972,2024.1,2023.4,9.311]
[1773179205217,2.47464972,2024.1,2023.4,2.25896457]
[1773179206917,2.47464972,2024.1,2023.5,2.25896457]
[1773179207821,0.24701,2024.1,2023.5,2.25896457]
[1773179208121,2.42597613,2024.3,2023.5,2.25896457]
[1773179209316,2.78734365,2024.2,2023.5,2.25896457]
[1773179210118,2.78734365,2024.2,2023.6,11.82276157]
[1773179210922,2.78734365,2024.2,2023.7,2.53176157]
[1773179211114,0.24699,2024.2,2023.7,2.53176157]
[1773179211318,2.54035365,2024.4,2023.7,2.53176157]
[1773179211513,7.66442569,2024.3,2023.7,2.53176157]
[1773179211722,2.54035365,2024.4,2023.7,2.53176157]
[1773179212021,10.20505341,2024.3,2023.7,2.53176157]
[1773179212221,2.54035365,2024.3,2023.7,2.53176157]
[1773179213522,2.54035365,2024.1,2023.3,11.81076157]
[1773179213721,2.54035365,2024.1,2023.4,2.53176157]
[1773179215318,2.54035365,2024.1,2023.5,2.53176157]
[1773179217527,4.05203832,2024.4,2023.5,2.53176157]
[1773179217721,2.54035365,2024.6,2023.5,2.53176157]
[1773179218026,7.65953832,2024.5,2023.5,2.77883157]
[1773179218622,4.05203832,2024.8,2023.7,2.53176157]
[1773179218819,2.54035365,2025.0,2023.9,2.53176157]
[1773179219021,7.66454408,2024.9,2023.9,2.53176157]
[1773179219715,6.83926197,2025.2,2023.9,2.53176157]
[1773179219922,7.66634141,2025.1,2023.9,2.53176157]
[1773179220119,7.39122413,2025.0,2024.1,2.53176157]
[1773179220426,2.54434682,2025.3,2024.3,2.53176157]
[1773179220623,2.54434682,2025.3,2023.8,2.53176157]
[1773179220823,2.54035365,2024.3,2023.8,2.53176157]
[1773179221120,2.54035365,2024.7,2023.9,2.53176157]
[1773179223823,2.54035365,2024.7,2024.1,2.53176157]
[1773179224525,2.78727365,2024.9,2024.1,2.53176157]
[1773179227125,4.05203832,2025.2,2024.1,2.53176157]
[1773179227327,2.54035365,2025.1,2024.1,2.53176157]
[1773179231736,2.54434682,2025.3,2024.1,2.53176157]
[1773179232235,7.63322511,2025.2,2024.1,2.53176157]
[1773179232832,2.54434682,2025.3,2024.1,2.77876157]
[1773179233027,0.00399317,2025.3,2024.1,2.77876157]
[1773179233639,0.00399317,2025.3,2024.3,2.53176157]
[1773179237036,0.00399317,2025.3,2024.5,2.53176157]
[1773179237232,0.00399317,2025.3,2024.5,2.53805922]
[1773179237632,0.00399317,2025.3,2024.5,2.78501922]
[1773179238038,2.54035365,2025.7,2024.5,2.78501922]
[1773179239042,2.54636674,2025.7,2024.5,2.78501922]
[1773179240843,2.54636674,2025.7,2024.9,2.59804317]
[1773179241035,2.54636674,2025.7,2025.1,2.59804317]
[1773179241338,2.48739623,2025.7,2025.1,2.59804317]
[1773179241741,0.00601309,2025.7,2025.1,2.59804317]
[1773179241936,2.48739623,2025.7,2025.1,2.59804317]
[1773179242538,0.00601309,2025.7,2025.1,2.59804317]
[1773179244240,0.00601309,2025.7,2025.3,2.59804317]
[1773179244542,2.48138314,2025.9,2025.4,11.81004317]
[1773179244738,2.48138314,2025.9,2025.5,2.59804317]
[1773179245640,2.48729939,2025.9,2025.5,2.59804317]
[1773179246344,2.48729939,2025.9,2025.4,2.59804317]
[1773179246539,2.48729939,2025.9,2025.3,9.151]
[1773179247246,2.48729939,2025.9,2025.3,11.74904317]
[1773179247436,2.48729939,2025.9,2025.3,2.59804317]
[1773179247639,2.48729939,2025.9,2025.5,2.59804317]
[1773179247842,2.48729939,2025.9,2025.4,9.155]
[1773179248043,2.73408939,2025.9,2025.4,9.155]
[1773179248345,2.73408939,2025.9,2025.4,11.75304317]
[1773179248545,2.73408939,2025.9,2025.1,9.157]
[1773179248844,2.73408939,2025.9,2025.2,9.158]
[1773179249046,2.73408939,2025.9,2025.0,2.59804317]
[1773179249346,2.48138314,2025.7,2025.1,9.159]
[1773179249546,2.48138314,2025.7,2025.1,9.16]
[1773179250442,2.48138314,2025.7,2024.9,2.59804317]
[1773179250645,2.48138314,2025.7,2025.0,9.164]
[1773179251147,2.48138314,2025.7,2025.0,9.166]
[1773179252444,2.48138314,2025.5,2025.0,11.76404317]
[1773179254649,2.48138314,2025.5,2025.1,2.59804317]
[1773179254839,0.24682,2025.6,2025.1,2.59804317]
[1773179255046,2.72820314,2025.6,2025.0,9.166]
[1773179255342,2.72825314,2025.3,2024.7,2.59804317]
[1773179256449,2.72825314,2025.3,2024.5,2.60434082]
[1773179258245,2.48138314,2025.1,2024.5,2.60434082]
[1773179261154,2.48138314,2025.1,2024.5,11.75634082]
[1773179262652,2.48138314,2025.1,2024.6,2.59804317]
[1773179262858,2.48138314,2025.1,2024.5,0.00629765]
[1773179263155,2.48138314,2024.9,2024.2,2.59804317]
[1773179263346,2.48138314,2024.9,2024.0,2.59804317]
[1773179263547,2.72829314,2024.9,2024.0,2.59804317]
[1773179264249,2.72829314,2024.9,2024.0,11.76304292]
[1773179264448,2.72829314,2024.9,2024.0,2.60304292]
[1773179265253,2.72829314,2024.9,2024.0,0.00499975]
[1773179266654,2.72829314,2024.9,2024.0,2.60304292]
[1773179269547,1.95184916,2024.8,2024.0,2.60304292]
[1773179269749,2.53001402,2024.7,2024.0,2.60304292]
[1773179270153,2.53001402,2024.5,2024.0,0.00499975]
[1773179271157,2.53001402,2024.5,2024.0,2.7365139]
[1773179276660,2.53001402,2024.7,2024.0,2.7365139]
[1773179281152,2.53001402,2024.7,2024.1,2.73151415]
[1773179281557,2.53001402,2024.5,2023.9,9.144]
[1773179281757,2.53001402,2024.5,2023.5,1.95184916]
[1773179281758,2.53001402,2024.3,2023.5,11.87451415]
[1773179281961,2.53001402,2024.1,2023.5,2.73151415]
[1773179282161,2.53001402,2024.1,2023.4,9.142]
[1773179282352,2.53001402,2024.1,2023.2,40.8]
[1773179282353,2.53001402,2024.1,2023.5,2.73151415]
[1773179282560,2.53504622,2024.1,2023.5,2.73525881]
[1773179285866,2.53504622,2024.1,2023.5,11.87725881]
[1773179286066,2.53504622,2024.1,2023.6,2.73151415]
[1773179287668,0.0050322,2024.1,2023.6,2.73151415]
[1773179287869,2.53001402,2024.4,2023.6,2.73151415]
[1773179288863,0.00369,2024.4,2023.7,1.95184916]
[1773179289067,0.00369,2024.4,2023.8,2.73151415]
[1773179289263,0.00369,2024.4,2024.0,2.73151415]
[1773179291270,2.77693402,2024.9,2024.0,2.73151415]
[1773179291571,7.63054358,2024.8,2024.0,2.73151415]
[1773179291868,2.53001402,2024.9,2024.0,2.73151415]
[1773179292066,4.48186318,2025.0,2024.0,2.73151415]
[1773179292259,4.48698205,2025.0,2024.0,2.73151415]
[1773179292872,2.53513289,2025.0,2024.2,2.73151415]
[1773179293768,0.00511887,2025.0,2024.2,2.73151415]
[1773179297371,2.53513289,2025.0,2024.2,2.73151415]
[1773179300272,0.00511887,2025.0,2024.2,2.73151415]
[1773179301872,0.00511887,2025.0,2024.4,2.50682402]
[1773179302073,0.00511887,2025.0,2024.6,2.50682402]
[1773179305372,4.5946492,2025.4,2024.6,2.50682402]
[1773179305677,2.64280004,2025.4,2024.6,2.50682402]
[1773179305973,4.5946492,2025.6,2024.6,2.50682402]
[1773179306278,4.60074824,2025.6,2024.6,2.50682402]
[1773179307176,4.60074824,2025.6,2024.8,2.50682402]
[1773179308778,2.64889908,2025.6,2024.8,2.50682402]
[1773179308977,0.00609904,2025.6,2024.8,2.50682402]
[1773179309774,0.00609904,2025.6,2025.0,2.50682402]
[1773179309976,0.00609904,2025.6,2025.0,2.51079527]
[1773179311977,2.64280004,2025.9,2025.0,2.51079527]
[1773179313079,2.64914173,2025.9,2025.0,2.51079527]
[1773179313268,2.64914173,2025.9,2025.1,1.95184916]
[1773179313474,0.00634169,2025.9,2025.2,2.50682402]
[1773179313681,2.64914173,2025.9,2025.4,2.50682402]
[1773179314678,2.64914173,2025.9,2025.3,9.148]
[1773179314679,2.64914173,2025.9,2025.2,2.50682402]
[1773179316283,2.64914173,2025.9,2025.4,2.50682402]
[1773179326287,2.64914173,2025.9,2025.3,11.66982402]
[1773179326488,2.64914173,2025.9,2025.3,9.163]
[1773179327590,2.64914173,2025.9,2025.3,11.81789829]
[1773179328588,2.64914173,2025.9,2025.4,2.65489829]
[1773179333190,0.00634169,2025.9,2025.4,2.65489829]
[1773179333390,2.54689565,2025.9,2025.4,2.65489829]
[1773179334391,0.00634169,2025.9,2025.4,2.65489829]
[1773179335393,2.54689565,2025.9,2025.4,2.65489829]
[1773179335594,0.00634169,2025.9,2025.4,2.65489829]
[1773179335893,2.54689565,2025.9,2025.4,2.65489829]
[1773179336083,0.00634169,2025.9,2025.4,2.65489829]
[1773179341198,2.54055396,2026.1,2025.4,2.65489829]
[1773179342297,2.5448175,2026.1,2025.4,2.65489829]
[1773179342798,0.00426354,2026.1,2025.4,2.65489829]
[1773179344501,0.00426354,2026.1,2025.6,2.4824624]
[1773179344700,0.00426354,2026.1,2025.8,2.4824624]
[1773179344998,2.54055396,2026.3,2025.8,2.4824624]
[1773179345198,2.54055396,2026.6,2025.8,2.4824624]
[1773179345800,2.54688973,2026.6,2025.8,2.4824624]
[1773179346000,2.54688973,2026.6,2025.9,9.185]
[1773179346193,2.54688973,2026.6,2026.0,2.4824624]
[1773179347101,4.06399919,2027.0,2026.0,2.4824624]
[1773179347395,2.54055396,2027.1,2026.0,2.4824624]
[1773179347598,2.54055396,2027.1,2026.0,2.7292324]
[1773179348200,2.54497432,2027.1,2026.0,2.7292324]
[1773179358108,0.00442036,2027.1,2026.4,2.4824624]
[1773179358306,0.00442036,2027.1,2026.6,2.4824624]
[1773179358501,2.54055396,2027.4,2026.6,2.4862413]
[1773179359508,0.00543215,2027.4,2026.6,2.4862413]
[1773179359708,0.00543215,2027.4,2026.8,2.567509]
[1773179360407,2.46115351,2027.6,2026.8,2.567509]
[1773179361309,2.46550266,2027.6,2026.8,2.567509]
[1773179363005,2.46115351,2027.8,2027.0,2.567509]
[1773179363203,1.94915879,2027.6,2026.7,40.8]
[1773179363406,2.46115351,2027.5,2026.6,2.5712879]
[1773179363607,2.46115351,2027.5,2026.6,0.0037789]
[1773179363803,2.46115351,2027.2,2026.4,11.744509]
[1773179364313,2.46115351,2027.2,2026.4,2.567509]
[1773179364611,2.46115351,2027.2,2026.4,11.747509]
[1773179364812,2.4652674,2027.2,2026.4,11.75234086]
[1773179365612,2.4652674,2027.2,2026.5,2.567509]
[1773179368414,2.4652674,2027.2,2026.5,11.775509]
[1773179368613,2.4652674,2027.2,2026.6,2.567509]
[1773179369917,2.4652674,2027.2,2026.5,9.208]
[1773179370115,2.4652674,2027.2,2026.4,2.57234086]
[1773179370314,2.4652674,2027.2,2026.6,2.567509]
[1773179374227,2.4652674,2027.2,2026.6,11.822509]
[1773179376031,2.4652674,2027.2,2026.7,2.567509]
[1773179379132,2.4652674,2027.2,2026.8,2.567509]
[1773179379637,1.5592853,2027.2,2026.8,2.567509]
[1773179379836,1.5592853,2027.2,2026.7,9.297]
[1773179380236,1.5592853,2027.2,2026.8,2.567509]
[1773179380237,0.00411389,2027.2,2026.8,2.567509]
[1773179380937,2.4652674,2027.2,2026.8,2.567509]
[1773179381138,0.00411389,2027.2,2026.8,2.567509]
[1773179383838,2.4652674,2027.2,2026.8,2.567509]
[1773179384238,0.00411389,2027.2,2026.8,2.567509]
[1773179384933,2.4652674,2027.2,2026.4,0.00483186]
[1773179385135,2.46115351,2027.0,2026.4,0.00483186]
[1773179385736,2.46115351,2027.0,2026.4,2.57234086]
[1773179386637,2.46115351,2026.8,2026.0,2.567509]
[1773179386844,2.46115351,2026.6,2026.0,2.567509]
[1773179387039,2.32972282,2026.5,2026.0,2.567509]
[1773179387543,2.32972282,2026.5,2025.9,11.68703383]
[1773179387741,2.32972282,2026.5,2025.9,11.69172862]
[1773179388838,2.32972282,2026.5,2025.9,9.36069479]
[1773179389049,2.32972282,2026.5,2025.9,0.00469479]
[1773179389442,2.33784186,2026.3,2025.9,0.00469479]
[1773179389638,2.33784186,2026.3,2025.7,2.33803383]
[1773179390649,2.33784186,2026.3,2025.7,2.34273158]
[1773179392144,2.33784186,2026.3,2025.7,0.00469775]
[1773179392545,2.33784186,2026.1,2025.7,2.42531232]
[1773179392944,2.33784186,2026.1,2025.7,1e-08]
[1773179398346,2.33784186,2026.1,2025.5,11.79861457]
[1773179398650,2.33784186,2026.1,2025.6,2.42061457]
[1773179399448,2.33784186,2026.1,2025.6,2.42651794]
[1773179400248,2.33784186,2026.1,2025.6,0.00590337]
[1773179400449,2.33784186,2026.0,2025.3,11.80461457]
[1773179401246,2.33784186,2026.0,2025.3,2.42061457]
[1773179401447,2.33784186,2026.0,2025.3,0.00430274]
[1773179401850,2.33784186,2025.8,2025.3,0.00430274]
[1773179402049,2.33784186,2025.7,2025.2,1.84222118]
[1773179403054,2.34243819,2025.7,2025.2,1.84614372]
[1773179403356,0.00459633,2025.7,2025.2,1.84614372]
[1773179403555,2.34243819,2025.7,2025.2,1.84614372]
[1773179407156,2.33784186,2025.6,2025.2,1.84614372]
[1773179407356,2.33784186,2025.6,2025.0,9.387]
[1773179407557,2.33784186,2025.6,2025.0,9.409]
[1773179408263,2.33784186,2025.6,2025.0,9.41437452]
[1773179408561,2.33784186,2025.4,2024.8,2.42061457]
[1773179409459,2.33784186,2025.4,2024.8,2.42520788]
[1773179409754,2.33784186,2024.8,2023.9,2.42061457]
[1773179409963,2.33784186,2024.5,2023.9,2.42061457]
[1773179410352,2.33784186,2024.3,2023.6,2.42061457]
[1773179410560,2.33784186,2024.3,2023.7,11.78761457]
[1773179410752,2.33784186,2024.1,2023.7,0.00511104]
[1773179410951,2.34405793,2024.1,2023.7,0.00511104]
[1773179415361,2.34405793,2024.1,2023.4,11.82561457]
[1773179415863,2.34405793,2024.1,2023.4,11.84161457]
[1773179416465,2.34405793,2024.1,2023.4,11.84744821]
[1773179416863,2.34405793,2024.1,2023.4,9.42683364]
[1773179418075,2.34405793,2024.1,2023.4,11.84744821]
[1773179418768,2.34405793,2024.1,2023.5,2.42061457]
[1773179419361,2.34405793,2024.1,2023.6,2.45043276]
[1773179420363,2.47216944,2024.4,2023.7,1.94670695]
[1773179420568,2.47216944,2024.7,2023.8,2.45043276]
[1773179420869,2.47216944,2024.7,2024.0,2.45043276]
[1773179421070,2.47216944,2024.7,2024.1,2.45043276]
[1773179421469,2.47612709,2024.7,2024.1,2.45043276]
[1773179424665,0.00395765,2024.7,2024.2,2.45043276]
[1773179425068,2.47216944,2024.9,2024.2,2.69742276]
[1773179425368,1.94670695,2025.3,2024.2,2.69742276]
[1773179425669,2.47216944,2025.2,2024.2,2.69742276]
[1773179426062,2.47766964,2025.2,2024.2,2.69742276]
[1773179432680,0.0055002,2025.2,2024.2,2.69742276]
[1773179432871,0.0055002,2025.2,2024.7,2.45043276]
[1773179433067,0.0055002,2025.2,2024.8,2.45043276]
[1773179433874,2.47216944,2025.3,2024.8,2.45043276]
[1773179434374,2.47216944,2025.9,2024.8,2.45043276]
[1773179434676,2.47216944,2025.7,2024.8,2.45043276]
[1773179434877,2.47696151,2025.7,2024.8,2.45043276]
[1773179444286,2.47696151,2025.7,2025.0,2.45043276]
[1773179444477,2.47696151,2025.7,2025.0,2.45435199]
[1773179449484,0.00479207,2025.7,2025.0,2.45435199]
[1773179449889,0.00479207,2025.7,2025.2,2.22875055]
[1773179450285,4.02348092,2026.5,2025.2,2.22875055]
[1773179450286,2.26352414,2026.4,2025.2,2.22875055]
[1773179450486,2.26352414,2026.2,2025.2,2.22875055]
[1773179451289,2.26817132,2026.2,2025.2,2.22875055]
[1773179452185,0.00464718,2026.2,2025.4,2.22875055]
[1773179452489,0.00464718,2026.2,2025.6,2.22875055]
[1773179452789,2.26352414,2026.4,2025.6,2.22875055]
[1773179453589,0.00430734,2026.4,2025.6,2.22875055]
[1773179454995,2.26352414,2026.7,2025.8,2.22875055]
[1773179455488,4.02348092,2027.1,2025.8,2.22875055]
[1773179455489,2.26352414,2027.1,2025.8,2.22875055]
[1773179455681,2.26352414,2026.9,2025.8,2.22875055]
[1773179456189,2.26352414,2026.9,2025.7,0.24681]
[1773179456190,2.26750552,2026.9,2026.0,2.22875055]
[1773179456491,2.26750552,2026.9,2026.2,2.22875055]
[1773179458790,0.00398138,2026.9,2026.2,2.22875055]
[1773179459088,2.26352414,2027.1,2026.4,2.22875055]
[1773179459393,0.24658,2027.6,2026.4,2.22875055]
[1773179459394,2.26352414,2027.5,2026.4,2.22875055]
[1773179460193,2.26746559,2027.5,2026.4,2.22875055]
[1773179463090,2.26746559,2027.5,2026.6,2.22875055]
[1773179463284,2.26746559,2027.5,2026.6,2.23490129]
[1773179476100,2.26746559,2027.5,2026.8,2.22875055]
[1773179478297,2.26352414,2027.7,2026.8,2.22875055]
[1773179479297,2.26737787,2027.7,2026.8,2.22875055]
[1773179481306,0.00385373,2027.7,2026.8,2.22875055]
[1773179481703,0.00385373,2027.7,2027.0,2.15614168]
[1773179482010,2.11141323,2027.7,2027.2,2.15614168]
[1773179482215,0.00385373,2027.7,2027.2,2.15614168]
[1773179482416,2.11141323,2027.7,2027.2,2.15614168]
[1773179483517,2.10710734,2027.7,2027.2,2.15614168]
[1773179484618,2.11154007,2027.7,2027.2,2.15614168]
[1773179485719,2.11154007,2027.7,2027.1,9.48]
[1773179486813,2.11154007,2027.7,2027.2,2.15614168]
[1773179487309,2.11154007,2027.7,2027.1,9.48]
[1773179487717,2.11154007,2027.7,2027.2,9.483]
[1773179488114,2.11154007,2027.7,2027.3,2.15614168]
[1773179488514,2.11154007,2027.7,2027.2,11.63914168]
[1773179489416,2.11154007,2027.7,2027.3,2.15614168]
[1773179490118,2.11154007,2027.7,2027.2,9.483]
[1773179491316,2.11154007,2027.7,2027.0,9.488]
[1773179492022,2.11154007,2027.7,2027.0,11.64414168]
[1773179492213,2.11154007,2027.7,2027.1,2.15614168]
[1773179493023,0.00443273,2027.7,2027.1,2.40278168]
[1773179493216,2.1075595,2027.9,2027.3,2.15614168]
[1773179494122,2.11263908,2027.9,2027.3,2.15614168]
[1773179494423,2.11263908,2027.9,2027.4,9.491]
[1773179495213,2.11263908,2027.9,2027.2,9.492]
[1773179495614,2.1075595,2027.7,2027.1,2.15614168]
[1773179495922,2.1075595,2027.7,2027.2,11.64814168]
[1773179496130,2.1075595,2027.7,2027.2,2.15614168]
[1773179499224,2.1075595,2027.7,2027.1,9.492]
[1773179499426,2.1075595,2027.6,2027.0,9.494]
[1773179500222,2.1075595,2027.6,2027.0,11.65014168]
[1773179501224,2.1075595,2027.6,2027.1,2.15614168]
[1773179502633,2.1075595,2027.8,2027.1,2.15614168]
[1773179503925,1.945866,2027.6,2026.8,2.15614168]
[1773179504130,2.1075595,2027.5,2027.1,9.496]
[1773179505436,2.1075595,2027.5,2026.9,11.65214168]
[1773179505626,2.1075595,2027.5,2027.0,2.15614168]
[1773179506128,2.1075595,2027.5,2026.9,9.496]
[1773179506329,2.1075595,2027.5,2026.9,2.15614168]
[1773179506732,2.1075595,2027.5,2026.8,2.15614168]
[1773179507234,2.11305202,2027.3,2026.8,2.15614168]
[1773179507439,2.11305202,2027.3,2026.6,9.50215074]
[1773179507629,2.11305202,2027.3,2026.6,11.73926455]
[1773179507830,2.11305202,2026.9,2026.0,2.23711381]
[1773179508133,2.11305202,2026.9,2026.2,2.23711381]
[1773179508730,2.11305202,2026.9,2026.4,2.23711381]
[1773179508930,2.11305202,2026.9,2026.4,2.24292166]
[1773179512730,2.11305202,2026.9,2026.4,0.00580785]
[1773179513634,2.11305202,2026.9,2026.3,9.496]
[1773179514426,2.10731263,2026.8,2026.3,9.496]
[1773179514636,2.10731263,2026.8,2026.3,9.4994943]
[1773179515336,2.10731263,2027.2,2026.5,2.06689542]
[1773179517332,2.10731263,2027.4,2026.7,2.06689542]
[1773179517631,2.10731263,2027.4,2026.9,2.06689542]
[1773179518231,2.10731263,2027.6,2026.9,2.06689542]
[1773179519032,2.10731263,2027.8,2026.9,2.06689542]
[1773179520134,1.95094558,2027.9,2026.9,2.06689542]
[1773179520335,4.05825821,2027.9,2027.1,2.06689542]
[1773179520537,2.10731263,2027.8,2027.1,2.06689542]
[1773179521334,2.10731263,2027.8,2027.2,9.494]
[1773179521739,2.10731263,2027.6,2026.9,2.06689542]
[1773179522034,2.10731263,2027.4,2026.6,11.55989542]
[1773179522435,2.10731263,2027.4,2026.7,2.06689542]
[1773179525846,2.10731263,2027.2,2026.7,9.489]
[1773179526141,2.10731263,2027.2,2026.7,11.55589542]
[1773179527544,2.10731263,2027.2,2026.4,2.06689542]
[1773179527743,2.10731263,2027.2,2026.5,11.55389542]
[1773179528144,2.10731263,2027.2,2026.5,2.06689542]
[1773179528443,2.10731263,2027.2,2026.5,11.55389542]
[1773179530142,2.10731263,2027.2,2026.5,2.06689542]
[1773179530547,2.10731263,2027.0,2026.4,9.486]
[1773179530739,2.10731263,2026.8,2026.3,0.0034943]
[1773179530944,2.10731263,2026.8,2026.1,2.06689542]
[1773179531941,2.10731263,2026.8,2026.1,2.07187562]
[1773179535540,0.24664,2027.2,2026.1,2.07187562]
[1773179535541,2.10731263,2026.6,2026.1,2.07187562]
[1773179535747,1.945866,2026.9,2026.1,2.07187562]
[1773179536146,4.05317863,2026.9,2026.2,2.06689542]
[1773179536352,2.10731263,2026.8,2026.2,2.06689542]
[1773179547171,2.1131027,2027.0,2026.2,2.06689542]
[1773179554479,2.1131027,2027.0,2026.3,1.95870021]
[1773179556857,2.1131027,2027.2,2026.3,1.95870021]
[1773179559068,2.1131027,2027.2,2026.5,1.95870021]
[1773179559466,2.1131027,2027.4,2026.5,1.95870021]
[1773179567674,2.01400688,2027.8,2026.5,1.95870021]
[1773179567870,2.01400688,2027.6,2026.5,1.95870021]
[1773179568573,2.01400688,2027.6,2026.6,1.896963]
[1773179569173,2.01400688,2027.8,2026.6,1.896963]
[1773179569565,2.01400688,2027.8,2026.2,1.94645209]